bitfinex/quotes_BTCUSD_20250522
["timestamp","ask_amount","ask_price","bid_price","bid_amount"]
[1747882522757,0.01046152,110580.0,110570.0,0.88221707]
[1747882522966,0.002,110580.0,110570.0,0.92010771]
[1747882523174,0.01104265,110580.0,110570.0,0.92010771]
[1747882523581,0.01004265,110580.0,110570.0,0.93162474]
[1747882523787,0.01004265,110580.0,110570.0,0.93362474]
[1747882523986,0.00904265,110580.0,110570.0,1.0271829]
[1747882524188,0.00904265,110580.0,110570.0,1.0291829]
[1747882524807,0.19894991,110580.0,110570.0,0.91575322]
[1747882525014,0.02712836,110580.0,110570.0,0.92479685]
[1747882525346,0.01808538,110580.0,110570.0,0.93384032]
[1747882525564,0.02712827,110580.0,110570.0,0.93932284]
[1747882525952,0.226079,110580.0,110570.0,0.93027937]
[1747882526183,0.22607892,110580.0,110570.0,0.93932292]
[1747882526371,0.21703578,110580.0,110570.0,0.93932235]
[1747882526660,0.21703578,110580.0,110570.0,0.9538632]
[1747882526897,0.03617125,110580.0,110570.0,0.9538632]
[1747882527299,0.04526401,110580.0,110570.0,0.9538632]
[1747882527580,0.20804341,110580.0,110570.0,0.72357579]
[1747882527786,0.19900043,110580.0,110570.0,0.45626831]
[1747882527992,0.19900043,110580.0,110570.0,0.44475128]
[1747882528199,0.19900043,110580.0,110570.0,0.44501337]
[1747882528402,0.19900043,110580.0,110570.0,0.45955422]
[1747882528553,0.19900043,110580.0,110570.0,0.36955422]
[1747882528750,0.19900043,110580.0,110570.0,0.35854085]
[1747882529611,0.19900043,110580.0,110570.0,0.77409615]
[1747882530016,0.19900043,110580.0,110570.0,0.78313986]
[1747882530455,0.19900043,110580.0,110570.0,0.55750956]
[1747882530651,0.19900043,110580.0,110570.0,0.77409615]
[1747882530855,0.19900043,110580.0,110570.0,0.7831402]
[1747882531116,0.20745694,110580.0,110570.0,0.7831402]
[1747882531294,0.20745694,110580.0,110570.0,0.79218399]
[1747882531497,0.22245694,110580.0,110570.0,0.2355974]
[1747882531699,0.22245694,110580.0,110570.0,0.46838399]
[1747882532132,0.22245694,110580.0,110570.0,0.4774277]
[1747882532334,0.21650016,110580.0,110570.0,0.47742721]
[1747882532551,0.20804365,110580.0,110570.0,0.47945245]
[1747882532976,0.20804365,110580.0,110570.0,0.47040874]
[1747882533189,0.49478365,110580.0,110570.0,0.47040874]
[1747882535658,0.50324829,110580.0,110570.0,0.81945245]
[1747882536138,0.50324829,110580.0,110570.0,0.8847091]
[1747882536390,0.48774829,110580.0,110570.0,0.82849608]
[1747882536879,0.50334829,110580.0,110570.0,0.81040874]
[1747882537646,0.29784021,110580.0,110570.0,0.82849592]
[1747882538085,0.49679045,110580.0,110570.0,0.828496]
[1747882538297,0.50583367,110580.0,110570.0,0.828496]
[1747882539148,0.50583367,110580.0,110570.0,0.81945245]
[1747882539330,0.32496914,110580.0,110570.0,0.81945245]
[1747882539640,0.48774829,110580.0,110570.0,0.57573448]
[1747882539847,0.50394829,110580.0,110570.0,0.81040874]
[1747882540276,0.50394829,110580.0,110570.0,0.59382215]
[1747882540431,0.50394829,110580.0,110570.0,0.81945237]
[1747882540897,0.00851434,110580.0,110570.0,0.93902941]
[1747882541104,0.00851434,110580.0,110570.0,1.02902941]
[1747882541312,4.97e-05,110580.0,110570.0,1.02902941]
[1747882541535,4.97e-05,110580.0,110570.0,1.43722941]
[1747882541737,4.97e-05,110580.0,110570.0,1.0433758]
[1747882543022,4.97e-05,110580.0,110570.0,1.0268758]
[1747882543851,4.97e-05,110580.0,110570.0,1.01580701]
[1747882546186,0.00909235,110580.0,110570.0,0.79922042]
[1747882546386,4.97e-05,110580.0,110570.0,1.01580701]
[1747882546591,0.00909227,110580.0,110570.0,1.01580701]
[1747882546787,0.00909219,110580.0,110570.0,1.01580701]
[1747882548531,0.00909219,110580.0,110570.0,1.04294101]
[1747882549456,0.18995672,110580.0,110570.0,1.02485391]
[1747882549673,0.22344316,110580.0,110570.0,0.93485383]
[1747882549918,0.22344316,110580.0,110570.0,0.95294101]
[1747882550117,0.03353541,110580.0,110570.0,0.95294101]
[1747882550319,0.00909219,110580.0,110570.0,0.95294052]
[1747882550530,0.02717757,110580.0,110570.0,0.95294052]
[1747882550667,0.01813484,110580.0,110570.0,0.95294052]
[1747882550876,0.02717773,110580.0,110570.0,0.95294052]
[1747882551295,0.03622079,110580.0,110570.0,0.95294052]
[1747882551501,0.05242079,110580.0,110570.0,1.04294052]
[1747882551707,0.05242071,110580.0,110570.0,1.04294052]
[1747882552147,4.97e-05,110580.0,110570.0,1.04294052]
[1747882552523,4.97e-05,110580.0,110570.0,1.05834052]
[1747882552901,4.97e-05,110580.0,110570.0,1.66878072]
[1747882553144,0.85927461,110600.0,110590.0,0.34]
[1747882553275,0.85932434,110600.0,110590.0,0.73743476]
[1747882553471,0.85932434,110600.0,110590.0,0.74647716]
[1747882553713,0.86778452,110600.0,110590.0,0.76197716]
[1747882553876,0.86778452,110600.0,110590.0,0.77101948]
[1747882554327,0.41563117,110600.0,110590.0,0.80364424]
[1747882554527,0.7159951,110600.0,110590.0,0.80364424]
[1747882554960,0.7159951,110600.0,110590.0,0.79460241]
[1747882555097,0.72503669,110600.0,110590.0,0.80364432]
[1747882555327,0.8958275,110600.0,110590.0,0.79460241]
[1747882555521,0.8958275,110600.0,110590.0,0.80364441]
[1747882555729,0.8958275,110600.0,110590.0,0.81268632]
[1747882555930,0.8948275,110600.0,110590.0,0.81268632]
[1747882556343,0.8948275,110600.0,110590.0,0.81368632]
[1747882557400,0.6235875,110600.0,110590.0,0.81368632]
[1747882557601,0.8947875,110600.0,110590.0,0.81368632]
[1747882557828,0.88632732,110600.0,110590.0,0.81368632]
[1747882560108,0.91632732,110600.0,110590.0,0.81368632]
[1747882560411,0.90012732,110600.0,110590.0,0.81368632]
[1747882560849,0.90012732,110600.0,110590.0,1.13940591]
[1747882560850,0.03004973,110600.0,110590.0,1.13940591]
[1747882561054,0.39834,110630.0,110590.0,2.15283777]
[1747882561272,0.67907591,110630.0,110620.0,0.79484544]
[1747882561468,0.04352683,110630.0,110620.0,0.79484544]
[1747882561672,0.05256556,110630.0,110620.0,0.79484544]
[1747882562039,0.06160437,110630.0,110620.0,0.79484544]
[1747882562590,0.06219082,110630.0,110620.0,0.79484544]
[1747882564008,0.06219082,110630.0,110620.0,0.80817129]
[1747882565184,0.22489664,110630.0,110620.0,0.57112744]
[1747882565395,0.48701791,110630.0,110620.0,0.57112744]
[1747882566555,0.20503892,110620.0,110610.0,0.4082]
[1747882566767,0.22043892,110620.0,110610.0,0.4082]
[1747882567178,0.22251128,110620.0,110610.0,0.82014291]
[1747882567402,0.22251128,110620.0,110610.0,0.8291836]
[1747882567656,0.20443178,110620.0,110610.0,0.63932744]
[1747882567861,0.19599913,110620.0,110610.0,0.64132744]
[1747882568066,0.19599913,110620.0,110610.0,0.42474085]
[1747882568288,0.19599913,110620.0,110610.0,0.60555632]
[1747882568486,0.19599913,110620.0,110610.0,0.61459709]
[1747882568688,0.02423979,110620.0,110610.0,1.21350484]
[1747882568893,0.02423979,110620.0,110610.0,1.21550484]
[1747882568894,0.31347863,110620.0,110610.0,1.21550484]
[1747882569112,0.32251858,110620.0,110610.0,1.215505]
[1747882570626,0.05135858,110620.0,110610.0,1.215505]
[1747882571132,0.22311841,110620.0,110610.0,1.1974242]
[1747882571422,0.19599913,110620.0,110610.0,0.96563761]
[1747882571674,0.19599913,110620.0,110610.0,0.55743761]
[1747882572312,0.19599913,110620.0,110610.0,0.56647805]
[1747882572886,0.19599913,110620.0,110610.0,0.54839709]
[1747882573107,0.19599913,110620.0,110610.0,0.57512744]
[1747882573310,0.19599913,110620.0,110610.0,0.77402437]
[1747882573475,0.19599913,110620.0,110610.0,0.7921055]
[1747882573801,0.19599913,110620.0,110610.0,0.80114594]
[1747882574752,0.20503892,110620.0,110610.0,0.80114545]
[1747882575160,0.20503892,110620.0,110610.0,0.81704545]
[1747882575723,0.31347863,110620.0,110610.0,0.81704496]
[1747882575905,0.3225185,110620.0,110610.0,0.81704496]
[1747882577272,0.29827855,110620.0,110610.0,0.81704496]
[1747882577572,0.29827863,110620.0,110610.0,1.31927853]
[1747882578743,0.02711863,110620.0,110610.0,1.31927853]
[1747882579761,0.02711863,110620.0,110610.0,1.40927853]
[1747882582108,0.02711863,110620.0,110610.0,1.4200085]
[1747882582329,0.02711863,110620.0,110610.0,1.63659509]
[1747882582537,0.23275763,110620.0,110610.0,1.61851461]
[1747882582776,0.23275763,110620.0,110610.0,1.40192802]
[1747882583005,0.23275763,110620.0,110610.0,1.41096838]
[1747882583237,0.23275763,110620.0,110610.0,1.42000866]
[1747882584163,0.39685735,110630.0,110620.0,0.56245885]
[1747882584365,0.69454302,110630.0,110620.0,0.79464544]
[1747882584728,0.71262063,110630.0,110620.0,0.79464544]
[1747882584950,0.89340398,110630.0,110620.0,0.79633603]
[1747882585623,0.89340398,110630.0,110620.0,0.78560606]
[1747882586377,0.7035415,110630.0,110620.0,0.88867901]
[1747882586755,0.71258063,110630.0,110620.0,0.88843247]
[1747882586949,0.71258063,110630.0,110620.0,0.6628065]
[1747882587163,0.71258063,110630.0,110620.0,0.88843263]
[1747882587360,0.51300341,110630.0,110620.0,0.65624604]
[1747882587566,0.51300341,110630.0,110620.0,0.87283263]
[1747882587915,0.33222063,110630.0,110620.0,0.97187209]
[1747882588053,0.33222063,110630.0,110620.0,0.98757209]
[1747882588442,0.33222063,110630.0,110620.0,0.90661147]
[1747882589332,0.32377266,110630.0,110620.0,0.90661147]
[1747882589605,0.50455544,110630.0,110620.0,1.27890001]
[1747882589816,0.50455544,110630.0,110620.0,1.29697917]
[1747882591251,0.51301217,110630.0,110620.0,1.29697917]
[1747882591395,0.51301217,110630.0,110620.0,1.38697917]
[1747882592511,0.51301217,110630.0,110620.0,1.39601863]
[1747882592712,0.31622931,110630.0,110620.0,1.47031466]
[1747882592907,0.33252931,110630.0,110620.0,1.40505801]
[1747882593305,0.23373536,110630.0,110620.0,1.39601863]
[1747882593542,0.22469688,110630.0,110620.0,0.86844085]
[1747882593770,0.20661926,110630.0,110620.0,0.7482]
[1747882593969,0.87245926,110630.0,110620.0,0.7482]
[1747882594185,0.87245926,110630.0,110620.0,0.76274085]
[1747882595509,0.23081458,110600.0,110590.0,0.027128]
[1747882595727,1.65495746,110600.0,110590.0,0.027128]
[1747882595945,1.65495746,110600.0,110580.0,0.03169477]
[1747882595946,0.18989041,110590.0,110580.0,0.03169477]
[1747882596155,0.53161057,110590.0,110580.0,0.03169477]
[1747882596361,0.96564414,110590.0,110580.0,0.03169477]
[1747882596570,0.89161057,110590.0,110580.0,0.01589477]
[1747882596744,0.89161057,110590.0,110580.0,9.477e-05]
[1747882596955,0.90233818,110590.0,110580.0,9.477e-05]
[1747882597156,0.19898639,110560.0,110550.0,0.04120321]
[1747882597360,0.96703996,110560.0,110550.0,0.04125294]
[1747882597965,0.96703996,110560.0,110550.0,4.973e-05]
[1747882598157,1.19208722,110560.0,110550.0,4.973e-05]
[1747882598987,1.28612079,110560.0,110550.0,4.973e-05]
[1747882599191,1.19308722,110560.0,110550.0,4.973e-05]
[1747882599638,0.97650063,110560.0,110550.0,4.973e-05]
[1747882599795,1.19208722,110560.0,110550.0,4.973e-05]
[1747882599984,1.19308722,110560.0,110550.0,4.973e-05]
[1747882600403,1.19208722,110560.0,110550.0,4.973e-05]
[1747882600622,1.28612079,110560.0,110550.0,4.973e-05]
[1747882600828,1.28812079,110560.0,110550.0,4.973e-05]
[1747882601133,1.19408722,110560.0,110550.0,4.973e-05]
[1747882601339,1.18862655,110560.0,110550.0,4.973e-05]
[1747882602125,0.97203996,110560.0,110550.0,4.973e-05]
[1747882602298,0.96363996,110560.0,110550.0,4.973e-05]
[1747882602921,1.18022655,110560.0,110550.0,4.973e-05]
[1747882603888,1.28986012,110560.0,110550.0,4.973e-05]
[1747882604288,1.18022655,110560.0,110550.0,4.973e-05]
[1747882604441,1.16472655,110560.0,110550.0,4.973e-05]
[1747882605499,0.94813996,110560.0,110550.0,4.973e-05]
[1747882609584,1.19592655,110560.0,110550.0,4.973e-05]
[1747882611442,1.58664655,110560.0,110550.0,4.973e-05]
[1747882612897,1.65954636,110560.0,110550.0,4.973e-05]
[1747882617992,2.01954636,110560.0,110550.0,4.973e-05]
[1747882618195,2.23613295,110560.0,110550.0,4.973e-05]
[1747882618332,2.54450835,110560.0,110550.0,4.973e-05]
[1747882618541,2.32792176,110560.0,110550.0,4.973e-05]
[1747882619110,2.32492176,110560.0,110550.0,4.973e-05]
[1747882619318,2.33892176,110560.0,110550.0,0.00104973]
[1747882619491,2.32054636,110560.0,110550.0,0.00104973]
[1747882619724,2.53713295,110560.0,110550.0,0.00104973]
[1747882619910,2.52713295,110560.0,110550.0,0.00104973]
[1747882620116,2.52513295,110560.0,110550.0,0.00104973]
[1747882620486,2.53613295,110560.0,110550.0,0.00204973]
[1747882620718,2.51113295,110560.0,110550.0,4.973e-05]
[1747882620925,2.51113295,110560.0,110550.0,0.00104973]
[1747882620926,2.31654636,110560.0,110550.0,0.00104973]
[1747882621130,2.54413295,110560.0,110550.0,0.00304973]
[1747882621512,7.61738768,110560.0,110550.0,0.00304973]
[1747882621936,8.31738768,110560.0,110550.0,0.00304973]
[1747882622340,7.61738768,110560.0,110550.0,0.00304973]
[1747882622547,7.59413295,110560.0,110550.0,0.00304973]
[1747882624090,0.19907642,110510.0,110500.0,0.04644085]
[1747882624295,0.84875642,110510.0,110500.0,0.04649055]
[1747882626999,0.85913411,110510.0,110500.0,0.04649055]
[1747882627818,0.86513411,110510.0,110500.0,0.04649055]
[1747882628022,0.85475642,110510.0,110500.0,0.04649055]
[1747882630609,0.20507642,110510.0,110500.0,0.04649055]
[1747882630829,0.58339642,110510.0,110500.0,0.28938485]
[1747882631022,0.59244462,110510.0,110500.0,0.28938485]
[1747882631220,0.60149357,110510.0,110500.0,0.29843454]
[1747882631382,0.60149357,110510.0,110500.0,0.29843462]
[1747882631578,0.60149357,110510.0,110500.0,0.30748431]
[1747882631780,0.60149357,110510.0,110500.0,0.49752922]
[1747882631781,0.59244462,110510.0,110500.0,0.49752922]
[1747882632097,0.59244438,110510.0,110500.0,0.57430436]
[1747882632300,0.59244438,110510.0,110500.0,0.57430444]
[1747882632698,0.60149317,110510.0,110500.0,0.56525508]
[1747882633370,0.60149317,110510.0,110500.0,0.65525516]
[1747882633371,0.59849317,110510.0,110500.0,0.65525516]
[1747882633569,0.58944438,110510.0,110500.0,0.65525516]
[1747882633774,0.58944438,110510.0,110500.0,0.66430452]
[1747882633775,0.58644438,110510.0,110500.0,0.66430452]
[1747882633970,0.58644438,110510.0,110500.0,0.65525516]
[1747882634111,0.59549317,110510.0,110500.0,0.6653046]
[1747882634517,0.59549317,110510.0,110500.0,0.65625516]
[1747882637023,0.59549317,110510.0,110500.0,0.64720564]
[1747882637214,0.60454212,110510.0,110500.0,0.64720564]
[1747882637416,0.60454212,110510.0,110500.0,0.65625524]
[1747882637638,0.60454204,110510.0,110500.0,0.66530476]
[1747882637857,0.59549317,110510.0,110500.0,0.6743542]
[1747882638078,0.59549317,110510.0,110500.0,0.66530476]
[1747882638812,0.59549317,110510.0,110500.0,0.99625524]
[1747882639349,0.60454212,110510.0,110500.0,0.99625524]
[1747882639784,0.60454204,110510.0,110500.0,0.99625524]
[1747882640485,0.60454204,110510.0,110500.0,0.98720564]
[1747882640673,0.59549383,110510.0,110500.0,1.38635595]
[1747882640885,0.59549383,110510.0,110500.0,1.39540564]
[1747882641292,0.59549383,110510.0,110500.0,1.40445524]
[1747882641917,0.59549383,110510.0,110500.0,1.39540564]
[1747882642270,0.60454278,110510.0,110500.0,1.39540564]
[1747882642558,0.60454278,110510.0,110500.0,1.40445524]
[1747882644635,0.60454278,110510.0,110500.0,1.39540564]
[1747882647457,0.5864457,110510.0,110500.0,1.19631071]
[1747882647887,0.57739691,110510.0,110500.0,1.19631071]
[1747882648087,0.57739691,110510.0,110500.0,1.19581071]
[1747882648498,0.56834804,110510.0,110500.0,1.19581071]
[1747882648759,0.56834804,110510.0,110500.0,1.10581071]
[1747882649168,0.83974804,110510.0,110500.0,1.10581071]
[1747882650631,0.83974804,110510.0,110500.0,1.01177714]
[1747882652588,0.83974804,110510.0,110500.0,0.38699055]
[1747882653591,0.19002804,110510.0,110500.0,0.60357714]
[1747882653826,0.46142804,110510.0,110500.0,0.21658659]
[1747882654163,0.46142779,110510.0,110500.0,0.40663175]
[1747882654386,0.47952512,110510.0,110500.0,0.41568127]
[1747882654670,0.47952512,110510.0,110500.0,0.40663175]
[1747882654881,0.47047625,110510.0,110500.0,0.50971492]
[1747882655084,0.47952512,110510.0,110500.0,0.51876444]
[1747882655803,0.47952512,110510.0,110500.0,0.52425577]
[1747882656221,0.47952512,110510.0,110500.0,0.61425577]
[1747882656410,0.47047625,110510.0,110500.0,0.52425577]
[1747882656616,0.1900102,110520.0,110510.0,0.19002796]
[1747882656828,0.47045792,110520.0,110510.0,0.53979674]
[1747882657032,0.47950581,110520.0,110510.0,0.63884528]
[1747882657254,0.25404978,110540.0,110530.0,0.05368816]
[1747882657255,0.56709331,110540.0,110530.0,0.05368816]
[1747882657449,0.67561768,110540.0,110530.0,0.56334888]
[1747882657694,0.59419464,110540.0,110530.0,0.35526101]
[1747882657901,0.5851488,110540.0,110530.0,0.36430824]
[1747882658077,0.57610272,110540.0,110530.0,0.35526101]
[1747882658281,0.57610272,110540.0,110530.0,0.55430189]
[1747882658566,0.57610272,110540.0,110530.0,0.56334904]
[1747882658751,0.39717233,110540.0,110530.0,0.58144277]
[1747882658990,0.39988551,110550.0,110540.0,0.22942256]
[1747882659138,0.6893758,110550.0,110540.0,0.44600915]
[1747882659347,0.69842148,110550.0,110540.0,0.45505523]
[1747882659551,0.69842148,110550.0,110540.0,0.46410115]
[1747882659732,0.69842148,110550.0,110540.0,0.45505523]
[1747882660154,0.68033029,110550.0,110540.0,0.46410115]
[1747882660355,0.21809484,110550.0,110540.0,0.44600915]
[1747882660510,0.48949484,110550.0,110540.0,0.44600915]
[1747882660712,0.30858123,110550.0,110540.0,0.45505507]
[1747882660940,0.30858123,110550.0,110540.0,0.54505507]
[1747882661203,0.31862682,110550.0,110540.0,0.54505507]
[1747882661405,0.01104494,110550.0,110540.0,0.65362949]
[1747882661889,0.002,110550.0,110540.0,0.65362949]
[1747882662103,0.002,110550.0,110540.0,1.48161608]
[1747882662297,0.002,110550.0,110540.0,2.15253708]
[1747882662493,0.001,110550.0,110540.0,2.13844508]
[1747882662729,0.001,110550.0,110540.0,2.41266608]
[1747882663842,0.03617427,110570.0,110560.0,0.59487169]
[1747882664042,0.03626414,110570.0,110560.0,0.90549185]
[1747882664380,0.03626414,110570.0,110560.0,0.99549185]
[1747882665182,0.19905842,110570.0,110560.0,0.69342744]
[1747882665390,0.19900439,110550.0,110540.0,0.0323]
[1747882665596,0.18997631,110540.0,110530.0,0.23258659]
[1747882665798,0.19902256,110540.0,110530.0,0.58163382]
[1747882666559,0.19902256,110540.0,110530.0,0.24922182]
[1747882666676,0.19902256,110540.0,110530.0,0.77016816]
[1747882666880,0.02713793,110540.0,110530.0,0.82960896]
[1747882667084,0.001,110540.0,110530.0,0.91410168]
[1747882667280,0.001,110540.0,110530.0,0.92864253]
[1747882667491,0.001,110540.0,110530.0,0.93264253]
[1747882667698,0.01004576,110540.0,110530.0,1.02264253]
[1747882668025,0.20002239,110540.0,110530.0,0.77320832]
[1747882668205,0.20002239,110540.0,110530.0,0.65558659]
[1747882668406,0.19097631,110540.0,110530.0,0.58012744]
[1747882668798,0.19097631,110540.0,110530.0,0.58917467]
[1747882668995,0.01004608,110540.0,110530.0,0.80421515]
[1747882669198,0.29945825,110540.0,110530.0,0.92359546]
[1747882669459,0.02813825,110540.0,110530.0,0.92359546]
[1747882670181,0.02813825,110540.0,110530.0,1.01359546]
[1747882670914,0.03718466,110540.0,110530.0,1.01359546]
[1747882671176,0.20002272,110540.0,110530.0,0.85107378]
[1747882671355,0.20002272,110540.0,110530.0,0.86012093]
[1747882671538,0.20002272,110540.0,110530.0,0.77012093]
[1747882671735,0.001,110540.0,110530.0,0.90550173]
[1747882671933,0.001,110540.0,110530.0,0.92359546]
[1747882672799,0.001,110540.0,110530.0,1.19491546]
[1747882672980,0.03618156,110550.0,110540.0,0.20806872]
[1747882673205,0.03618156,110550.0,110540.0,0.45695531]
[1747882674114,0.02713588,110550.0,110540.0,0.45695531]
[1747882674319,0.21709508,110550.0,110540.0,0.44890931]
[1747882674520,0.21709566,110550.0,110540.0,0.41660939]
[1747882674884,0.20805031,110550.0,110540.0,0.41660939]
[1747882675429,0.20805031,110550.0,110540.0,0.43470172]
[1747882675837,0.20805031,110550.0,110540.0,0.43470181]
[1747882676032,0.20805031,110550.0,110540.0,0.41660939]
[1747882676181,0.19900488,110550.0,110540.0,0.42565564]
[1747882677157,0.19900488,110550.0,110540.0,0.43470181]
[1747882677378,0.19900488,110550.0,110540.0,0.41660939]
[1747882677904,0.18995929,110550.0,110540.0,0.41660939]
[1747882678084,0.18091361,110550.0,110540.0,0.001]
[1747882678314,0.19691361,110550.0,110540.0,0.001]
[1747882678515,0.47306347,110550.0,110540.0,0.001]
[1747882678932,0.3790299,110550.0,110540.0,0.001]
[1747882679565,0.59561649,110550.0,110540.0,0.001]
[1747882679796,0.60561649,110550.0,110540.0,0.001]
[1747882680202,0.19905841,110520.0,110510.0,0.19551994]
[1747882680426,0.85634654,110520.0,110510.0,0.43020419]
[1747882680628,0.85634654,110520.0,110510.0,0.77020419]
[1747882680857,0.85634654,110520.0,110510.0,0.57112744]
[1747882681144,0.85634654,110520.0,110510.0,0.76115548]
[1747882681327,0.38596772,110520.0,110510.0,0.77020418]
[1747882681508,0.28036674,110530.0,110520.0,0.56310613]
[1747882681710,0.27132,110530.0,110520.0,1.01157931]
[1747882681915,1.04804584,110540.0,110530.0,0.56308713]
[1747882682083,1.039,110540.0,110530.0,0.80402054]
[1747882682283,0.40877176,110540.0,110530.0,0.78600837]
[1747882682591,0.40877176,110540.0,110530.0,1.00259496]
[1747882682592,0.41781793,110540.0,110530.0,1.00259496]
[1747882682794,0.41781793,110540.0,110530.0,0.91259496]
[1747882683422,0.41781793,110540.0,110530.0,0.91359496]
[1747882683585,0.42686426,110540.0,110530.0,0.91359496]
[1747882683801,0.42686418,110540.0,110530.0,0.91359496]
[1747882684082,0.00904576,110540.0,110530.0,0.91359496]
[1747882684346,0.01809168,110540.0,110530.0,0.91359496]
[1747882684588,0.02713776,110540.0,110530.0,0.91359496]
[1747882684789,0.21711407,110540.0,110530.0,0.8955014]
[1747882684962,0.19902239,110540.0,110530.0,0.35554085]
[1747882686823,0.19902239,110540.0,110530.0,0.01554085]
[1747882687174,0.19902239,110540.0,110530.0,0.35554085]
[1747882687379,0.19902239,110540.0,110530.0,0.01554085]
[1747882687618,0.19902239,110540.0,110530.0,0.35554085]
[1747882689250,0.21512239,110540.0,110530.0,0.001]
[1747882689477,0.23042239,110540.0,110530.0,0.001]
[1747882689862,0.19902239,110540.0,110530.0,0.01554085]
[1747882690037,0.47038239,110540.0,110530.0,0.23212744]
[1747882690766,0.47038239,110540.0,110530.0,0.01554085]
[1747882691627,0.47038239,110540.0,110530.0,0.001]
[1747882691838,0.48538239,110540.0,110530.0,0.001]
[1747882693187,0.50118239,110540.0,110530.0,0.001]
[1747882693681,0.48618239,110540.0,110530.0,0.001]
[1747882694649,0.47038239,110540.0,110530.0,0.001]
[1747882699906,0.59671596,110540.0,110530.0,0.001]
[1747882700714,0.60517108,110540.0,110530.0,0.001]
[1747882702813,0.57287108,110540.0,110530.0,0.001]
[1747882703013,0.47883751,110540.0,110530.0,0.001]
[1747882703739,0.47038239,110540.0,110530.0,0.001]
[1747882705269,0.48688239,110540.0,110530.0,0.001]
[1747882705472,0.50268239,110540.0,110530.0,0.001]
[1747882705687,0.59671596,110540.0,110530.0,0.001]
[1747882706110,0.60517108,110540.0,110530.0,0.001]
[1747882706969,0.82175767,110540.0,110530.0,0.001]
[1747882710437,0.59671596,110540.0,110530.0,0.001]
[1747882712536,0.60517354,110540.0,110530.0,0.001]
[1747882713709,0.60617354,110540.0,110530.0,0.001]
[1747882714645,0.19905841,110520.0,110510.0,8.979e-05]
[1747882714827,0.93901198,110520.0,110510.0,8.979e-05]
[1747882715820,0.93901198,110520.0,110510.0,0.00208979]
[1747882716908,1.28233214,110520.0,110510.0,0.00408979]
[1747882717118,1.06574555,110520.0,110510.0,0.00408979]
[1747882717339,0.93901198,110520.0,110510.0,0.00408979]
[1747882717778,0.29309198,110520.0,110510.0,0.00408979]
[1747882717979,0.93901198,110520.0,110510.0,0.00408979]
[1747882718189,0.93901198,110520.0,110510.0,0.00208979]
[1747882718392,0.94001198,110520.0,110510.0,0.00208979]
[1747882718595,0.94001198,110520.0,110510.0,8.979e-05]
[1747882718807,0.94101198,110520.0,110510.0,8.979e-05]
[1747882723030,1.33185198,110520.0,110510.0,8.979e-05]
[1747882724502,1.372139,110520.0,110510.0,8.979e-05]
[1747882724719,1.388639,110520.0,110510.0,8.979e-05]
[1747882725681,1.404939,110520.0,110510.0,8.979e-05]
[1747882726484,1.58123857,110520.0,110510.0,8.979e-05]
[1747882728577,1.58221757,110520.0,110510.0,8.979e-05]
[1747882732356,0.18099547,110500.0,110490.0,0.0155]
[1747882732564,0.45243547,110500.0,110490.0,0.0155]
[1747882733390,0.19006227,110490.0,110480.0,0.04644085]
[1747882733568,0.56466227,110490.0,110480.0,0.03654409]
[1747882733774,0.56466227,110490.0,110480.0,0.0319]
[1747882734410,0.56466227,110490.0,110460.0,0.7383804]
[1747882734411,0.20820031,110470.0,110460.0,0.7383804]
[1747882734667,0.20820031,110470.0,110460.0,0.72932744]
[1747882734961,0.20820031,110470.0,110460.0,0.77943345]
[1747882735174,0.20820031,110470.0,110460.0,0.76132744]
[1747882735370,0.20820023,110470.0,110460.0,0.77038032]
[1747882735601,0.19929706,110470.0,110460.0,0.96049413]
[1747882735901,0.20834912,110470.0,110460.0,0.76132744]
[1747882736177,0.19929706,110470.0,110460.0,0.68943312]
[1747882736380,0.19929706,110470.0,110460.0,1.03543312]
[1747882736381,0.20029706,110470.0,110460.0,1.03543312]
[1747882736600,0.20029706,110470.0,110460.0,1.21649413]
[1747882736822,0.20934904,110470.0,110460.0,1.01732744]
[1747882737015,0.20934904,110470.0,110460.0,1.03543328]
[1747882737317,0.20934904,110470.0,110460.0,1.12543328]
[1747882737563,0.00114889,110470.0,110460.0,1.55523887]
[1747882737778,0.00014889,110470.0,110460.0,1.66230891]
[1747882737993,0.00014889,110470.0,110460.0,1.93850709]
[1747882738170,0.00114889,110470.0,110460.0,2.39440009]
[1747882738417,0.00114889,110470.0,110460.0,2.18095162]
[1747882740102,0.00114889,110470.0,110460.0,1.92247062]
[1747882740331,0.01020046,110470.0,110460.0,1.91341815]
[1747882740545,0.00114889,110470.0,110460.0,1.70588403]
[1747882740741,0.01020038,110470.0,110460.0,1.70588403]
[1747882740938,0.20029665,110470.0,110460.0,1.19971225]
[1747882741180,0.20029665,110470.0,110460.0,1.31724604]
[1747882741384,0.20934822,110470.0,110460.0,1.32629876]
[1747882741597,0.20934822,110470.0,110460.0,1.20867162]
[1747882741807,0.21840004,110470.0,110460.0,1.30772426]
[1747882742069,0.00114889,110470.0,110460.0,1.63644944]
[1747882742286,0.00114889,110470.0,110460.0,1.65099029]
[1747882744112,0.20934871,110470.0,110460.0,0.9914926]
[1747882744312,0.20029673,110470.0,110460.0,1.40724596]
[1747882744502,0.20029673,110470.0,110460.0,1.4162986]
[1747882744706,0.20934863,110470.0,110460.0,1.41629868]
[1747882744902,0.20029665,110470.0,110460.0,1.42535115]
[1747882745113,0.21840045,110470.0,110460.0,1.13215147]
[1747882745316,0.21840053,110470.0,110460.0,1.31321248]
[1747882745520,0.21840045,110470.0,110460.0,1.31321248]
[1747882745750,0.20934847,110470.0,110460.0,1.2322652]
[1747882746520,0.20934847,110470.0,110460.0,1.3222652]
[1747882746894,0.20934847,110470.0,110460.0,1.33131784]
[1747882747529,0.48988045,110470.0,110460.0,1.3222652]
[1747882747838,0.48082847,110470.0,110460.0,1.3222652]
[1747882748054,0.48082847,110470.0,110460.0,1.33131784]
[1747882748998,0.48988053,110470.0,110460.0,1.31321248]
[1747882749205,0.48988045,110470.0,110460.0,1.3222652]
[1747882749531,0.49893259,110470.0,110460.0,1.30415968]
[1747882749712,0.49893259,110470.0,110460.0,1.32226552]
[1747882749946,0.48988045,110470.0,110460.0,1.33131832]
[1747882750328,0.47177755,110470.0,110460.0,0.02254085]
[1747882750518,0.46272557,110470.0,110460.0,0.02254085]
[1747882751534,0.46272557,110470.0,110460.0,0.36254085]
[1747882752114,0.49572557,110470.0,110460.0,0.348]
[1747882753261,0.49572557,110470.0,110460.0,0.004]
[1747882753543,0.58875914,110470.0,110460.0,0.004]
[1747882753751,0.58975914,110470.0,110460.0,0.007]
[1747882753928,0.58975914,110470.0,110460.0,0.003]
[1747882754385,0.58975914,110470.0,110460.0,0.005]
[1747882754563,0.68379271,110470.0,110460.0,0.005]
[1747882754772,0.58975914,110470.0,110460.0,0.005]
[1747882754985,0.55675914,110470.0,110460.0,0.005]
[1747882757221,0.46272557,110470.0,110460.0,0.01954085]
[1747882757429,0.46272557,110470.0,110460.0,0.05044085]
[1747882758650,0.46272557,110470.0,110460.0,0.01954085]
[1747882759653,0.46272557,110470.0,110460.0,0.04469124]
[1747882759858,0.46272557,110470.0,110460.0,0.01954085]
[1747882762571,0.47802557,110470.0,110460.0,0.005]
[1747882762993,0.49322557,110470.0,110460.0,0.005]